fUSD/lending_fUSD_20250720
["ID","MTS","AMOUNT","RATE_DAILY","PERIOD"]
[373378054,1752976267071,-480.0,0.00019506,2]
[373378055,1752976267081,-1060.07,0.00019506,2]
[373378056,1752976267091,-593.71,0.00019506,2]
[373378057,1752976267101,-480.0,0.00019506,2]
[373378058,1752976267111,-563.35,0.00019506,2]
[373378059,1752976267121,-3199.5,0.00019506,2]
[373378060,1752976267131,-1809.22,0.00019506,2]
[373378061,1752976267140,-480.0,0.00019506,2]
[373378062,1752976267150,-2678.64,0.00019506,2]
[373378063,1752976267160,-658.01,0.00019506,2]
[373378064,1752976267169,-486.49,0.00019506,2]
[373378065,1752976267179,-480.0,0.00019506,2]
[373378066,1752976267188,-480.0,0.00019506,2]
[373378067,1752976267198,-1498.77,0.00019506,2]
[373378068,1752976267208,-502.09,0.00019506,2]
[373378069,1752976267217,-1075.2,0.00019506,2]
[373378070,1752976267227,-480.0,0.00019506,2]
[373378071,1752976267236,-2493.97,0.00019506,2]
[373378072,1752976267246,-480.0,0.00019506,2]
[373378073,1752976267255,-480.0,0.00019506,2]
[373378074,1752976267266,-25128.97,0.00019506,2]
[373378075,1752976267278,-480.0,0.00019506,2]
[373378076,1752976267288,-480.0,0.00019506,2]
[373378077,1752976267298,-480.0,0.00019506,2]
[373378078,1752976267308,-480.0,0.00019506,2]
[373378079,1752976267319,-1177.13,0.00019506,2]
[373378080,1752976267330,-480.0,0.00019506,2]
[373378081,1752976267339,-480.0,0.00019506,2]
[373378082,1752976267349,-2908.89,0.00019506,2]
[373378083,1752976267360,-846.85,0.00019506,2]
[373378084,1752976267369,-635.26,0.00019506,2]
[373378085,1752976267379,-1121.62,0.00019506,2]
[373378086,1752976267391,-480.0,0.00019506,2]
[373378087,1752976267400,-1290.05,0.00019506,2]
[373378088,1752976267410,-480.0,0.00019506,2]
[373378089,1752976267420,-480.0,0.00019506,2]
[373378090,1752976267430,-592.93,0.00019506,2]
[373378091,1752976267440,-1150.09,0.00019506,2]
[373378092,1752976267451,-480.0,0.00019506,2]
[373378093,1752976267462,-480.0,0.00019506,2]
[373378094,1752976267472,-480.0,0.00019506,2]
[373378095,1752976267482,-1047.91,0.00019506,2]
[373378096,1752976267492,-740.5,0.00019506,2]
[373378097,1752976267502,-3391.53,0.00019506,2]
[373378098,1752976267512,-1383.0,0.00019506,2]
[373378099,1752976267523,-348.0860357,0.00019506,2]
[373378100,1752976267721,-480.0,0.00019506,2]
[373378101,1752976267731,-666.72,0.00019506,2]
[373378102,1752976267741,-1496.16,0.00019506,2]
[373378103,1752976267751,-480.0,0.00019506,2]
[373378104,1752976267761,-1167.58,0.00019506,2]
[373378105,1752976267771,-480.0,0.00019506,2]
[373378106,1752976267782,-832.52,0.00019506,2]
[373378107,1752976267792,-719.21,0.00019506,2]
[373378108,1752976267801,-1878.82,0.00019506,2]
[373378109,1752976267811,-6377.87,0.00019506,2]
[373378110,1752976267821,-480.0,0.00019506,2]
[373378111,1752976267833,-509.08,0.00019506,2]
[373378112,1752976267843,-1243.7396953,0.00019507,2]
[373378113,1752976267853,-168.0,0.00019521,2]
[373378114,1752976267862,-1000.0,0.00019521,2]
[373378115,1752976267873,-1083.0,0.00019521,2]
[373378116,1752976267884,-166.96,0.00019527,2]
[373378117,1752976267895,-684.94354185,0.00019527,2]
[373378118,1752976267908,-743.94457458,0.00019532,2]
[373378119,1752976267918,-1386.02,0.0001954,2]
[373378120,1752976267927,-600.0,0.00019584,2]
[373378121,1752976267937,-168.0,0.00019606,2]
[373378122,1752976267947,-659.62,0.00019615,2]
[373378123,1752976267957,-659.62,0.00019615,2]
[373378124,1752976267966,-480.0,0.00019616,2]
[373378125,1752976267976,-480.0,0.00019616,2]
[373378126,1752976267985,-480.0,0.00019616,2]
[373378127,1752976267995,-480.0,0.00019616,2]
[373378128,1752976268005,-480.0,0.00019616,2]
[373378129,1752976268016,-480.0,0.00019616,2]
[373378130,1752976268027,-480.0,0.00019616,2]
[373378131,1752976268036,-480.0,0.00019616,2]
[373378132,1752976268046,-491.65536799,0.00019616,2]
[373378133,1752976268055,-480.0,0.00019616,2]
[373378134,1752976268065,-480.0,0.00019616,2]
[373378135,1752976268075,-480.0,0.00019616,2]
[373378136,1752976268084,-480.0,0.00019616,2]
[373378137,1752976268094,-480.0,0.00019616,2]
[373378138,1752976268103,-480.0,0.00019616,2]
[373378139,1752976268114,-480.0,0.00019616,2]
[373378140,1752976268123,-480.0,0.00019616,2]
[373378141,1752976268133,-480.0,0.00019616,2]
[373378142,1752976268142,-480.0,0.00019616,2]
[373378143,1752976268151,-480.0,0.00019616,2]
[373378144,1752976268161,-150.44961987,0.00019616,2]
[373378145,1752976268171,-480.0,0.00019616,2]
[373378146,1752976268181,-480.0,0.00019616,2]
[373378147,1752976268191,-480.0,0.00019616,2]
[373378148,1752976268201,-480.0,0.00019616,2]
[373378149,1752976268213,-480.0,0.00019616,2]
[373378150,1752976268223,-480.0,0.00019616,2]
[373378151,1752976268233,-480.0,0.00019616,2]
[373378152,1752976268243,-480.0,0.00019616,2]
[373378153,1752976268254,-683.22,0.00019616,2]
[373378154,1752976268264,-480.0,0.00019616,2]
[373378155,1752976268275,-4429.76,0.00019616,2]
[373378156,1752976268285,-480.0,0.00019616,2]
[373378157,1752976268295,-480.0,0.00019616,2]
[373378158,1752976268304,-480.0,0.00019616,2]
[373378159,1752976268314,-736.27,0.00019616,2]
[373378160,1752976268324,-489.15,0.00019616,2]
[373378161,1752976268333,-480.0,0.00019616,2]
[373378162,1752976268343,-198.77366886,0.00019616,2]
[373378163,1752976268353,-617.9,0.00019616,2]
[373378164,1752976268363,-852.66,0.00019616,2]
[373378165,1752976268373,-899.62,0.00019616,2]
[373378166,1752976268383,-480.0,0.00019616,2]
[373378167,1752976268392,-480.0,0.00019616,2]
[373378168,1752976268402,-480.0,0.00019616,2]
[373378169,1752976268411,-480.0,0.00019616,2]
[373378170,1752976268421,-480.0,0.00019616,2]
[373378171,1752976268431,-480.0,0.00019616,2]
[373378172,1752976268440,-480.0,0.00019616,2]
[373378173,1752976268449,-852.03,0.00019616,2]
[373378174,1752976268458,-480.0,0.00019616,2]
[373378175,1752976268468,-480.0,0.00019616,2]
[373378176,1752976268477,-571.02,0.00019616,2]
[373378177,1752976268487,-519.26,0.00019616,2]
[373378178,1752976268497,-480.0,0.00019616,2]
[373378179,1752976268506,-480.0,0.00019616,2]
[373378180,1752976268515,-480.0,0.00019616,2]
[373378181,1752976268525,-554.7,0.00019616,2]
[373378182,1752976268535,-480.0,0.00019616,2]
[373378183,1752976268544,-480.0,0.00019616,2]
[373378184,1752976268554,-480.0,0.00019616,2]
[373378185,1752976268563,-483.57,0.00019616,2]
[373378186,1752976268573,-480.0,0.00019616,2]
[373378187,1752976268583,-480.0,0.00019616,2]
[373378188,1752976268593,-480.0,0.00019616,2]
[373378189,1752976268603,-515.03,0.00019616,2]
[373378190,1752976268613,-480.0,0.00019616,2]
[373378191,1752976268624,-480.0,0.00019616,2]
[373378192,1752976268633,-480.0,0.00019616,2]
[373378193,1752976268643,-480.0,0.00019616,2]
[373378194,1752976268653,-480.0,0.00019616,2]
[373378195,1752976268662,-480.0,0.00019616,2]
[373378196,1752976268671,-480.0,0.00019616,2]
[373378197,1752976268681,-480.0,0.00019616,2]
[373378198,1752976268690,-480.0,0.00019616,2]
[373378199,1752976268700,-485.44,0.00019616,2]
[373378200,1752976268710,-480.0,0.00019616,2]
[373378201,1752976268719,-480.0,0.00019616,2]
[373378202,1752976268729,-670.56,0.00019616,2]
[373378203,1752976268738,-480.0,0.00019616,2]
[373378204,1752976268748,-480.0,0.00019616,2]
[373378205,1752976268758,-480.0,0.00019616,2]
[373378206,1752976268767,-1489.32,0.00019616,2]
[373378207,1752976268778,-480.0,0.00019616,2]
[373378208,1752976268788,-480.0,0.00019616,2]
[373378209,1752976268797,-480.0,0.00019616,2]
[373378210,1752976268807,-642.45,0.00019616,2]
[373378211,1752976268816,-590.0,0.00019616,2]
[373378212,1752976268825,-890.19,0.00019616,2]
[373378213,1752976268835,-506.75394667,0.00019616,2]
[373378214,1752976268844,-480.0,0.00019616,2]
[373378215,1752976268854,-480.0,0.00019616,2]
[373378216,1752976268864,-515.91,0.00019616,2]
[373378217,1752976268874,-480.0,0.00019616,2]
[373378218,1752976268883,-480.0,0.00019616,2]
[373378219,1752976268894,-480.0,0.00019616,2]
[373378220,1752976268909,-480.0,0.00019616,2]
[373378221,1752976268919,-480.0,0.00019616,2]
[373378222,1752976268928,-701.81,0.00019616,2]
[373378223,1752976268939,-480.0,0.00019616,2]
[373378224,1752976268949,-240.9245868,0.00019616,2]
[373378225,1752976268958,-789.0,0.00019616,2]
[373378226,1752976268967,-480.0,0.00019616,2]
[373378227,1752976268978,-480.0,0.00019616,2]
[373378228,1752976268988,-480.0,0.00019616,2]
[373378229,1752976268997,-501.14293536,0.00019616,2]
[373378230,1752976269007,-865.92,0.00019616,2]
[373378231,1752976269016,-480.0,0.00019616,2]
[373378232,1752976269028,-651.34,0.00019616,2]
[373378233,1752976269037,-480.0,0.00019616,2]
[373378234,1752976269047,-480.0,0.00019616,2]
[373378235,1752976269056,-480.0,0.00019616,2]
[373378236,1752976269065,-480.0,0.00019616,2]
[373378237,1752976269075,-529.8,0.00019616,2]
[373378238,1752976269084,-480.0,0.00019616,2]
[373378239,1752976269093,-480.0,0.00019616,2]
[373378240,1752976269103,-480.0,0.00019616,2]
[373378241,1752976269113,-480.0,0.00019616,2]
[373378242,1752976269124,-460.989115,0.00019616,2]
[373378243,1752976269133,-638.96,0.00019616,2]
[373378244,1752976269143,-928.55,0.00019616,2]
[373378245,1752976269153,-480.0,0.00019616,2]
[373378246,1752976269162,-480.0,0.00019616,2]
[373378247,1752976269172,-837.49,0.00019616,2]
[373378248,1752976269182,-480.0,0.00019616,2]
[373378249,1752976269192,-480.0,0.00019616,2]
[373378250,1752976269203,-443.937646,0.00019616,2]
[373378251,1752976269216,-480.0,0.00019616,2]
[373378252,1752976269225,-344.869005,0.00019616,2]
[373378253,1752976269234,-285.27629225,0.00019616,2]
[373378254,1752976269243,-480.0,0.00019616,2]
[373378255,1752976269253,-480.0,0.00019616,2]
[373378256,1752976269262,-480.0,0.00019616,2]
[373378257,1752976269271,-1118.56,0.00019616,2]
[373378258,1752976269281,-653.65,0.00019616,2]
[373378259,1752976269291,-480.0,0.00019616,2]
[373378260,1752976269300,-480.0,0.00019616,2]
[373378261,1752976269310,-2196.41,0.00019616,2]
[373378262,1752976269321,-567.75,0.00019616,2]
[373378263,1752976269331,-574.8,0.00019616,2]
[373378264,1752976269341,-480.0,0.00019616,2]
[373378265,1752976269350,-480.0,0.00019616,2]
[373378266,1752976269360,-499.07549364,0.00019616,2]
[373378267,1752976269369,-344.32197049,0.00019616,2]
[373378268,1752976269379,-660.8,0.00019616,2]
[373378269,1752976269388,-480.0,0.00019616,2]
[373378270,1752976269398,-480.0,0.00019616,2]
[373378271,1752976269408,-740.35,0.00019616,2]
[373378272,1752976269417,-480.0,0.00019616,2]
[373378273,1752976269427,-480.0,0.00019616,2]
[373378274,1752976269436,-658.91,0.00019616,2]
[373378275,1752976269446,-480.0,0.00019616,2]
[373378276,1752976269456,-746.47,0.00019616,2]
[373378277,1752976269465,-480.0,0.00019616,2]
[373378278,1752976269476,-1099.72,0.00019616,2]
[373378279,1752976269486,-480.0,0.00019616,2]
[373378280,1752976269497,-480.0,0.00019616,2]
[373378281,1752976269507,-493.56545419,0.00019616,2]
[373378282,1752976269517,-480.0,0.00019616,2]
[373378283,1752976269527,-480.0,0.00019616,2]
[373378284,1752976269536,-1615.6,0.00019616,2]
[373378285,1752976269546,-584.86,0.00019616,2]
[373378286,1752976269556,-1035.72,0.00019616,2]
[373378287,1752976269565,-480.0,0.00019616,2]
[373378288,1752976269575,-480.0,0.00019616,2]
[373378289,1752976269586,-600.4,0.00019616,2]
[373378290,1752976269595,-480.0,0.00019616,2]
[373378291,1752976269604,-480.0,0.00019616,2]
[373378292,1752976269614,-541.69,0.00019616,2]
[373378293,1752976269623,-480.0,0.00019616,2]
[373378294,1752976269633,-501.17386184,0.00019616,2]
[373378295,1752976269642,-480.0,0.00019616,2]
[373378296,1752976269652,-480.0,0.00019616,2]
[373378297,1752976269661,-1389.76,0.00019616,2]
[373378298,1752976269670,-560.26,0.00019616,2]
[373378299,1752976269679,-586.53648419,0.00019616,2]
[373378300,1752976269689,-480.0,0.00019616,2]
[373378301,1752976269698,-534.49,0.00019616,2]
[373378302,1752976269708,-3006.49,0.00019616,2]
[373378303,1752976269718,-480.0,0.00019616,2]
[373378304,1752976269727,-480.0,0.00019616,2]
[373378305,1752976269736,-480.0,0.00019616,2]
[373378306,1752976269746,-480.0,0.00019616,2]
[373378307,1752976269755,-480.0,0.00019616,2]
[373378308,1752976269764,-480.0,0.00019616,2]
[373378309,1752976269774,-5337.74,0.00019616,2]
[373378310,1752976269783,-346.1735244,0.00019616,2]
[373378311,1752976269793,-480.0,0.00019616,2]
[373378312,1752976269802,-545.87,0.00019616,2]
[373378313,1752976269812,-480.0,0.00019616,2]
[373378314,1752976269821,-480.0,0.00019616,2]
[373378315,1752976269831,-258.65408214,0.00019616,2]
[373378316,1752976269840,-1043.97,0.00019616,2]
[373378317,1752976269849,-3359.24,0.00019616,2]
[373378318,1752976269859,-575.63,0.00019616,2]
[373378319,1752976269869,-480.0,0.00019616,2]
[373378320,1752976269878,-1971.95,0.00019616,2]
[373378321,1752976269888,-525.14,0.00019616,2]
[373378322,1752976269897,-480.0,0.00019616,2]
[373378323,1752976269910,-480.0,0.00019616,2]
[373378324,1752976269919,-977.88,0.00019616,2]
[373378325,1752976269928,-637.77,0.00019616,2]
[373378326,1752976269939,-480.0,0.00019616,2]
[373378327,1752976269949,-994.88,0.00019616,2]
[373378328,1752976269959,-480.0,0.00019616,2]
[373378329,1752976269969,-1041.68,0.00019616,2]
[373378330,1752976269979,-237.91517071,0.00019616,2]
[373378331,1752976269989,-550.63,0.00019616,2]
[373378332,1752976269999,-682.51,0.00019616,2]
[373378333,1752976270009,-480.0,0.00019616,2]
[373378334,1752976270020,-4039.7,0.00019616,2]
[373378335,1752976270030,-480.0,0.00019616,2]
[373378336,1752976270110,-2203.38,0.00019616,2]
[373378337,1752976270120,-1000.08,0.00019616,2]
[373378338,1752976270129,-480.0,0.00019616,2]
[373378339,1752976270139,-1033.57,0.00019616,2]
[373378340,1752976270148,-480.0,0.00019616,2]
[373378341,1752976270157,-480.0,0.00019616,2]
[373378342,1752976270166,-615.08,0.00019616,2]
[373378343,1752976270176,-955.87,0.00019616,2]
[373378344,1752976270186,-480.0,0.00019616,2]
[373378345,1752976270196,-480.0,0.00019616,2]
[373378346,1752976270206,-480.0,0.00019616,2]
[373378347,1752976270215,-480.0,0.00019616,2]
[373378348,1752976270225,-540.57,0.00019616,2]
[373378349,1752976270236,-780.95,0.00019616,2]
[373378350,1752976270246,-2257.53,0.00019616,2]
[373378351,1752976270256,-480.0,0.00019616,2]
[373378352,1752976270266,-181.73458479,0.00019616,2]
[373378353,1752976270276,-480.0,0.00019616,2]
[373378354,1752976270285,-852.91,0.00019616,2]
[373378355,1752976270295,-480.0,0.00019616,2]
[373378356,1752976270304,-480.0,0.00019616,2]
[373378357,1752976270314,-480.0,0.00019616,2]
[373378358,1752976270323,-809.87,0.00019616,2]
[373378359,1752976270333,-2870.66,0.00019616,2]
[373378360,1752976270342,-480.0,0.00019616,2]
[373378361,1752976270351,-1118.31,0.00019616,2]
[373378362,1752976270362,-480.0,0.00019616,2]
[373378363,1752976270373,-480.0,0.00019616,2]
[373378364,1752976270382,-740.37,0.00019616,2]
[373378365,1752976270392,-803.87,0.00019616,2]
[373378366,1752976270401,-480.0,0.00019616,2]
[373378367,1752976270410,-958.33,0.00019616,2]
[373378368,1752976270419,-504.19,0.00019616,2]
[373378369,1752976270428,-3397.86,0.00019616,2]
[373378370,1752976270437,-480.0,0.00019616,2]
[373378371,1752976270446,-480.0,0.00019616,2]
[373378372,1752976270456,-657.26,0.00019616,2]
[373378373,1752976270465,-681.07,0.00019616,2]
[373378374,1752976270475,-480.0,0.00019616,2]
[373378375,1752976270484,-2540.68,0.00019616,2]
[373378376,1752976270493,-1355.38,0.00019616,2]
[373378377,1752976270503,-718.35,0.00019616,2]
[373378378,1752976270513,-480.0,0.00019616,2]
[373378379,1752976270523,-910.21,0.00019616,2]
[373378380,1752976270533,-480.0,0.00019616,2]
[373378381,1752976270544,-756.72,0.00019616,2]
[373378382,1752976270554,-9103.88,0.00019616,2]
[373378383,1752976270564,-2862.65,0.00019616,2]
[373378384,1752976270575,-4774.77,0.00019616,2]
[373378385,1752976270584,-526.73,0.00019616,2]
[373378386,1752976270594,-1208.73,0.00019616,2]
[373378387,1752976270604,-480.0,0.00019616,2]
[373378388,1752976270614,-480.0,0.00019616,2]
[373378389,1752976270623,-1838.65,0.00019616,2]
[373378390,1752976270634,-590.22,0.00019616,2]
[373378391,1752976270643,-480.0,0.00019616,2]
[373378392,1752976270653,-1636.51,0.00019616,2]
[373378393,1752976270662,-480.0,0.00019616,2]
[373378394,1752976270671,-1063.68,0.00019616,2]
[373378395,1752976270681,-561.21,0.00019616,2]
[373378396,1752976270691,-480.0,0.00019616,2]
[373378397,1752976270912,-852.7,0.00019616,2]
[373378398,1752976270922,-569.95,0.00019616,2]
[373378399,1752976270931,-1041.51,0.00019616,2]
[373378400,1752976270941,-1298.99,0.00019616,2]
[373378401,1752976270951,-6268.06,0.00019616,2]
[373378402,1752976270959,-480.0,0.00019616,2]
[373378403,1752976270969,-480.0,0.00019616,2]
[373378404,1752976270979,-666.13,0.00019616,2]
[373378405,1752976270988,-3960.08,0.00019616,2]
[373378406,1752976270997,-480.0,0.00019616,2]
[373378407,1752976271007,-480.0,0.00019616,2]
[373378408,1752976271016,-439.57454573,0.00019616,2]
[373378409,1752976271025,-1948.59,0.00019616,2]
[373378410,1752976271035,-1291.96,0.00019616,2]
[373378411,1752976271044,-1040.82,0.00019616,2]
[373378412,1752976271054,-1249.23,0.00019616,2]
[373378413,1752976271064,-1601.14,0.00019616,2]
[373378414,1752976271074,-480.0,0.00019616,2]
[373378415,1752976271084,-696.63,0.00019616,2]
[373378416,1752976271094,-480.0,0.00019616,2]
[373378417,1752976271104,-1184.75,0.00019616,2]
[373378418,1752976271114,-480.0,0.00019616,2]
[373378419,1752976271124,-480.0,0.00019616,2]
[373378420,1752976271135,-480.0,0.00019616,2]
[373378421,1752976271145,-880.33,0.00019616,2]
[373378422,1752976271155,-480.0,0.00019616,2]
[373378423,1752976271165,-646.35,0.00019616,2]
[373378424,1752976271175,-480.0,0.00019616,2]
[373378425,1752976271185,-671.42,0.00019616,2]
[373378426,1752976271195,-880.58,0.00019616,2]
[373378427,1752976271205,-480.0,0.00019616,2]
[373378428,1752976271215,-480.0,0.00019616,2]
[373378429,1752976271225,-480.0,0.00019616,2]
[373378430,1752976271235,-1428.17,0.00019616,2]
[373378431,1752976271247,-1525.79,0.00019616,2]
[373378432,1752976271257,-1025.14,0.00019616,2]
[373378433,1752976271267,-601.74,0.00019616,2]
[373378434,1752976271278,-1391.25,0.00019616,2]
[373378435,1752976271288,-595.82,0.00019616,2]
[373378436,1752976271298,-725.67,0.00019616,2]
[373378437,1752976271310,-1310.94,0.00019616,2]
[373378438,1752976271321,-4527.03,0.00019616,2]
[373378439,1752976271331,-2184.53,0.00019616,2]
[373378440,1752976271341,-2126.9,0.00019616,2]
[373378441,1752976271352,-753.76,0.00019616,2]
[373378442,1752976271362,-480.0,0.00019616,2]
[373378443,1752976271372,-480.0,0.00019616,2]
[373378444,1752976271383,-480.0,0.00019616,2]
[373378445,1752976271393,-480.0,0.00019616,2]
[373378446,1752976271404,-1111.03,0.00019616,2]
[373378447,1752976271414,-1996.48,0.00019616,2]
[373378448,1752976271424,-493.91,0.00019616,2]
[373378449,1752976271435,-1367.45,0.00019616,2]
[373378450,1752976271445,-480.0,0.00019616,2]
[373378451,1752976271455,-1080.26,0.00019616,2]
[373378452,1752976271466,-480.0,0.00019616,2]
[373378453,1752976271476,-2492.25,0.00019616,2]
[373378454,1752976271487,-912.59,0.00019616,2]
[373378455,1752976271497,-799.59,0.00019616,2]
[373378456,1752976271507,-480.0,0.00019616,2]
[373378457,1752976271518,-480.0,0.00019616,2]
[373378458,1752976271528,-615.47,0.00019616,2]
[373378459,1752976271539,-90.93872257,0.00019616,2]
[373378460,1752976272475,-1003.68127743,0.00019616,2]
[373378461,1752976272488,-1838.11,0.00019616,2]
[373378462,1752976272500,-480.0,0.00019616,2]
[373378463,1752976272514,-623.82,0.00019616,2]
[373378464,1752976272527,-940.07,0.00019616,2]
[373378465,1752976272541,-480.0,0.00019616,2]
[373378466,1752976272553,-530.44,0.00019616,2]
[373378467,1752976272566,-828.57,0.00019616,2]
[373378468,1752976272578,-1831.8,0.00019616,2]
[373378469,1752976272591,-780.91,0.00019616,2]
[373378470,1752976272603,-3807.6,0.00019616,2]
[373378471,1752976272616,-480.0,0.00019616,2]
[373378472,1752976272628,-1090.39,0.00019616,2]
[373378473,1752976272640,-817.08,0.00019616,2]
[373378474,1752976272653,-1199.84,0.00019616,2]
[373378475,1752976272665,-1353.58,0.00019616,2]
[373378476,1752976272678,-1586.5,0.00019616,2]
[373378477,1752976272691,-3572.48,0.00019616,2]
[373378478,1752976272703,-480.0,0.00019616,2]
[373378479,1752976272716,-1060.07,0.00019616,2]
[373378480,1752976272728,-593.71,0.00019616,2]
[373378481,1752976272741,-480.0,0.00019616,2]
[373378482,1752976272753,-563.35,0.00019616,2]
[373378483,1752976272765,-3199.5,0.00019616,2]
[373378484,1752976272778,-1809.22,0.00019616,2]
[373378485,1752976272791,-480.0,0.00019616,2]
[373378486,1752976272803,-2678.64,0.00019616,2]
[373378487,1752976272816,-658.01,0.00019616,2]
[373378488,1752976272828,-486.49,0.00019616,2]
[373378489,1752976272840,-480.0,0.00019616,2]
[373378490,1752976272854,-480.0,0.00019616,2]
[373378491,1752976272868,-1498.77,0.00019616,2]
[373378492,1752976272882,-502.09,0.00019616,2]
[373378493,1752976272897,-1075.2,0.00019616,2]
[373378494,1752976272916,-2493.97,0.00019616,2]
[373378495,1752976272932,-480.0,0.00019616,2]
[373378496,1752976272948,-480.0,0.00019616,2]
[373378497,1752976272964,-23898.96673748,0.00019616,2]
[373378498,1752976272990,-358.58964979,0.00019616,2]
[373378499,1752976273008,-365.132,0.00019616,2]
[373378500,1752976273145,-506.28161273,0.00019616,2]
[373378501,1752976273158,-480.0,0.00019616,2]
[373378502,1752976273171,-480.0,0.00019616,2]
[373378503,1752976273184,-480.0,0.00019616,2]
[373378504,1752976273200,-480.0,0.00019616,2]
[373378505,1752976273213,-480.0,0.00019616,2]
[373378506,1752976273227,-1177.13,0.00019616,2]
[373378507,1752976273241,-480.0,0.00019616,2]
[373378508,1752976273254,-99.8388335,0.00019616,2]
[373378509,1752976273273,-380.1611665,0.00019616,2]
[373378510,1752976273289,-2034.55458289,0.00019616,2]
[373378511,1752976273594,-39.2381459,0.00019178,2]
[373378512,1752976273611,-404.3835385,0.00019178,2]
[373378513,1752976273632,-36.3783156,0.00019178,2]
[373378514,1752976273641,-480.0,0.00019287,2]
[373378515,1752976273651,-874.33541711,0.00019616,2]
[373378516,1752976273660,-846.85,0.00019616,2]
[373378517,1752976273669,-635.26,0.00019616,2]
[373378518,1752976273679,-209.66018159,0.00019616,2]
[373378519,1752976274485,-1237.31323416,0.00019178,2]
[373378520,1752976274502,-629.51912941,0.00019178,2]
[373378521,1752976274513,-28.27763643,0.00019178,2]
[373378522,1752976274523,-881.91250919,0.00019287,2]
[373378523,1752976274537,-1013.19749081,0.00019287,2]
[373378524,1752976274548,-461.22999891,0.00019397,2]
[373378525,1752976274557,-1236.32901028,0.00019397,2]
[373378526,1752976276488,513.99994,0.00014564,2]
[373378530,1752976509416,-190.0,0.00018115,7]
[373378532,1752976521228,167.21,0.00024778,120]
[373378536,1752976681611,363.94343123,0.00025,120]
[373378543,1752976996742,154.0,0.0002501,120]
[373378574,1752977431896,-524.0,0.00017055,2]
[373378575,1752977431906,-463.0,0.000175,2]
[373378576,1752977432172,-1089.35742813,0.00017555,2]
[373378577,1752977432183,-1209.0,0.00017654,2]
[373378578,1752977432193,-1200.0,0.00017764,2]
[373378579,1752977432203,-17951.25,0.00017765,2]
[373378580,1752977432213,-1648.4,0.00017765,2]
[373378581,1752977432223,-1852.42,0.00017782,2]
[373378583,1752977432237,-1136.97,0.000178,2]
[373378585,1752977432246,-250.0,0.00017848,2]
[373378587,1752977432255,-666.0,0.00017866,2]
[373378588,1752977432264,-1000.0,0.00017871,2]
[373378590,1752977432275,-165.11,0.00017934,2]
[373378592,1752977432284,-4154.67,0.00017937,2]
[373378594,1752977432294,-167.21,0.00018021,2]
[373378596,1752977432306,-2082.09,0.00018021,2]
[373378597,1752977432316,-484.25170748,0.00018171,2]
[373378598,1752977432325,-301.38102873,0.00018171,2]
[373378600,1752977432334,-207.4,0.00018171,2]
[373378602,1752977432344,-160.2,0.00018329,2]
[373378604,1752977432353,-1000.0,0.0001863,2]
[373378606,1752977432362,-1018.09,0.0001863,2]
[373378608,1752977432371,-500.0,0.00018638,2]